Cogmind - Beta 13 X1 @@@ ROGUE MODE // 2023.08.25 @ 01:31:10 Player: VR-DUX Result: Self-destructed Performance ------------- Evolutions (4) 2000 Regions Visited (7) 1400 Robots Destroyed (90) 450 Value Destroyed (2362) 2362 Prototype IDs (24) 480 Alien Tech Used (0) 0 Bonus (322) 322 TOTAL SCORE: 7014 Bonus ------- High Alert Combat Kills 22 Aligned with FarCom 300 Cogmind --------- Core Integrity 850/850 Matter 7/300 Energy 150/150 System Corruption 0% Temperature Cool (0) Movement Treading (164) Location -6/Factory Parts ------- > --- POWER (1) -------- Micro Nuclear Core > --- PROPULSION (6) --- Armored Treads Armored Treads Improved Medium Treads Improved Medium Treads Improved Medium Treads > --- UTILITY (6) ------ Improved Heat Sink High-capacity Storage Unit Structural Scanner (fused) Improved Light Armor Plating Improved Light Armor Plating (fused) > --- WEAPON (2) ------- Flak Cannon Great Axe > --- INVENTORY (20) --- Micro Nuclear Core Micro Nuclear Core Armored Treads Medium Treads Improved Medium Treads Improved VTOL Module Improved VTOL Module Improved VTOL Module Medium Storage Unit Large Storage Unit High-capacity Storage Unit Transmission Jammer Heavy Laser Light EM Pulse Cannon Improved EM Pulse Cannon Grenade Launcher Grenade Launcher Deploy-a-Sentry Deploy-a-Sentry Deploy-a-Sentry Peak State ------------ > --- POWER ------------ Micro Nuclear Core > --- PROPULSION ------- Armored Treads Armored Treads Improved Medium Treads Improved Medium Treads Improved Medium Treads > --- UTILITY ---------- Improved Heat Sink High-capacity Storage Unit Structural Scanner Improved Light Armor Plating Improved Light Armor Plating > --- WEAPON ----------- Flak Cannon Great Axe > --- INVENTORY -------- Micro Nuclear Core Micro Nuclear Core Micro Nuclear Core Armored Treads Medium Treads Improved VTOL Module Improved VTOL Module Improved VTOL Module Medium Storage Unit Large Storage Unit High-capacity Storage Unit Transmission Jammer Heavy Laser Light EM Pulse Cannon Improved EM Pulse Cannon Grenade Launcher Grenade Launcher Deploy-a-Sentry Deploy-a-Sentry Deploy-a-Sentry [Rating: 50] Favorites ----------- Power Ion Engine Engine Ion Engine Power Core Micro Nuclear Core Propulsion Armored Treads Treads Armored Treads Leg Aluminum Leg Wheel Armored Wheel Flight Unit Improved VTOL Module Utility High-capacity Storage Unit Device Structural Scanner Storage High-capacity Storage Unit Processor Targeting Computer Protection Improved Light Armor Plating Weapon Beam Cannon Energy Gun EM Pulse Gun Energy Cannon Beam Cannon Ballistic Gun Light Assault Rifle Ballistic Cannon Light Cannon Launcher Grenade Launcher Special Weapon Mining Laser Slashing Weapon Great Axe Build | -11 -10 -10 -10 -9 -8 -7 -6 ------- Run | Jun Mat Min Exi Min Mat Fac Fac Slots Evolved 8 | . . . . . 4 2 2 Power . | . . . . . . . . Propulsion 4 | . . . . . 2 1 1 Utility 4 | . . . . . 2 1 1 Weapon . | . . . . . . . . Parts Attached 97 | . 20 . 6 . 42 29 . Power 10 | . 3 . . . 3 4 . Engine 6 | . 3 . . . 2 1 . Core 4 | . . . . . 1 3 . Reactor . | . . . . . . . . Propulsion 36 | . 8 . 2 . 17 9 . Treads 19 | . . . 2 . 9 8 . Leg 8 | . 8 . . . . . . Wheel 7 | . . . . . 7 . . Hover . | . . . . . . . . Flight 2 | . . . . . 1 1 . Utility 19 | . 3 . 3 . 7 6 . Device 7 | . . . . . 5 2 . Storage 6 | . 2 . 3 . 1 . . Processor 1 | . 1 . . . . . . Hackware . | . . . . . . . . Protection 5 | . . . . . 1 4 . Artifact . | . . . . . . . . Weapon 32 | . 6 . 1 . 15 10 . Energy Gun 5 | . . . . . 3 2 . Energy Cannon 5 | . 1 . . . 1 3 . Ballistic Gun 3 | . 3 . . . . . . Ballistic Cannon 8 | . . . . . 5 3 . Launcher 8 | . 2 . . . 6 . . Special Weapon 1 | . . . 1 . . . . Impact Weapon . | . . . . . . . . Slashing Weapon 2 | . . . . . . 2 . Piercing Weapon . | . . . . . . . . Special Melee Weapon . | . . . . . . . . Unidentified Prototypes 1 | . . . . . 1 . . Parts Lost 16 | . 3 . . . 13 . . Power 2 | . . . . . 2 . . Propulsion 6 | . 2 . . . 4 . . Utility 3 | . . . . . 3 . . Weapon 5 | . 1 . . . 4 . . Highest Loss Streak 7 | . 1 . . . 7 . . To Critical Strikes . | . . . . . . . . Average Slot Usage (%) 96 | . 98 100 99 100 83 99 . Engine 9 | . 13 14 14 14 5 . . Core 1 | . . . . . 3 6 . Treads 17 | . . . 18 28 18 37 . Leg 11 | . 27 28 9 . . . . Wheel 2 | . . . . . 14 . . Device 5 | . . . . . 9 18 . Storage 11 | . 14 14 13 14 9 7 . Processor 8 | . 12 14 14 14 3 . . Protection 2 | . . . . . . 11 . Energy Gun 1 | . 2 . . . 4 1 . Energy Cannon 5 | . 4 14 14 14 . . . Ballistic Gun 3 | . 10 . . . . . . Ballistic Cannon 2 | . . . . . 7 5 . Launcher 4 | . 10 14 5 . 1 . . Special Weapon 3 | . . . 8 14 3 . . Slashing Weapon 1 | . . . . . . 5 . Naked Turns . | . . . . . . . . Heaviest Build 70 | 14 51 51 51 49 57 70 . Greatest Support 130 | 20 20 20 40 40 80 130 . Greatest Overweight (x) 22 | . 4 2 2 1 10 22 . Average Overweight (x) 1 | . 1 2 1 1 1 . . Largest Inventory Capacity 20 | 8 20 20 20 20 20 20 . Average Capacity 19 | 8 19 20 19 20 20 20 . Most Carried 20 | 6 20 20 20 20 20 20 . Average Carried 19 | 6 18 20 19 19 19 19 . Final Capacity 20 | 8 20 20 20 20 20 20 20 Final Carried 20 | 6 20 20 20 20 20 20 20 Class Distribution -------------------- 87% | Mutant 8% | Infiltrator-Mutant 4% | Scavenger-Mutant Dominant Class ---------------- Mutant | -10/Materials Mutant | -10/Mines Mutant | -10/Exiles Mutant | -9/Mines Mutant | -8/Materials Mutant | -7/Factory Mutant | -6/Factory Resources | -11 -10 -10 -10 -9 -8 -7 -6 ----------- Run | Jun Mat Min Exi Min Mat Fac Fac Matter Collected 2070 | 209 478 . 200 44 914 225 . Remotely 531 | . . . . . 531 . . Salvage Created 2680 | 86 893 . . 55 1288 358 . Parts 164 | 1 80 . . 3 61 19 . Haulers Intercepted 4 | . 1 . . . 3 . . Recyclers Shooed 3 | . 2 . . . 1 . . Parts Field Recycled . | . . . . . . . . Retrieved Matter . | . . . . . . . . Parts Self-Destructed . | . . . . . . . . Prevented . | . . . . . . . . Kills | -11 -10 -10 -10 -9 -8 -7 -6 ------- Run | Jun Mat Min Exi Min Mat Fac Fac Combat Hostiles Destroyed 50 | . 16 . . . 27 7 . Guns 14 | . 10 . . . 2 2 . Cannons 13 | . 2 . . . 6 5 . AOE 23 | . 4 . . . 19 . . Classes Destroyed 13 | 1 8 . . . 3 1 . Worker 8 | . 2 . . 1 5 . . Builder 10 | . 5 . . . 3 2 . Tunneler 2 | . 2 . . . . . . Hauler 4 | . 1 . . . 3 . . Recycler 8 | 1 1 . . 1 4 1 . Operator 2 | . 2 . . . . . . Watcher 6 | . 3 . . . 3 . . Swarmer 7 | . 3 . . . 4 . . Grunt 30 | . 13 . . . 17 . . Brawler 1 | . . . . . 1 . . Sentry 6 | . . . . . 4 2 . Hunter 3 | . . . . . 1 2 . Programmer 3 | . . . . . . 3 . Best Kill Streak 12 | 1 7 . . 1 12 1 . Combat Bots Only 6 | . 3 . . . 6 1 . Max Kills in Single Turn 3 | 1 2 . . 1 3 1 . Gunslinging . | . . . . . . . . Exploded 3 | . 1 . . . 3 . . Melee . | . . . . . . . . Uniques/NPCs Destroyed . | . . . . . . . . Combat | -11 -10 -10 -10 -9 -8 -7 -6 -------- Run | Jun Mat Min Exi Min Mat Fac Fac Damage Taken 4082 | . 662 . . . 1894 1526 . Core 498 | . 107 . . . 268 123 . Absorbed by Shields . | . . . . . . . . Core Remaining (%) 72 | 100 . . . 57 51 82 . Volleys Fired 251 | 3 79 . . 3 115 51 . Largest 2 | 2 2 . . 2 2 2 . Hottest 160 | 60 60 . . 160 100 85 . Shots Fired 327 | 6 110 . . 5 135 71 . Gun 147 | 6 90 . . . 30 21 . Cannon 119 | . 9 . . 3 57 50 . Launcher 43 | . 11 . . . 32 . . Special 18 | . . . . 2 16 . . Kinetic 157 | 3 66 . . . 53 35 . Thermal 81 | . 9 . . 5 46 21 . Explosive 43 | . 11 . . . 32 . . Electromagnetic 46 | 3 24 . . . 4 15 . Robot Hit Streak 12 | 2 9 . . 4 10 12 . Robot Miss Streak 7 | 2 4 . . 1 7 3 . Penetration Max . | . . . . . . . . Secondary Targets 1 | . 1 . . . . . . Max Gunslinging Chain 1 | . 1 . . . . . . Shots Hit Robots 191 | 3 58 . . 3 72 55 . Core Hits 167 | 2 49 . . 2 84 30 . Critical Kills . | . . . . . . . . Critical Parts Destroyed . | . . . . . . . . Critical Strikes 6 | . . . . . 2 4 . Burn 4 | . . . . . 1 3 . Blast 1 | . . . . . 1 . . Corrupt 1 | . . . . . . 1 . Melee Attacks 19 | . . . . . . 19 . Impact . | . . . . . . . . Slashing 19 | . . . . . . 19 . Piercing . | . . . . . . . . Sneak Attacks 2 | . . . . . . 2 . Combat Hostiles . | . . . . . . . . Follow-up Attacks . | . . . . . . . . Damage Inflicted 5909 | 62 1406 . . 61 3355 1025 . Guns 1107 | 26 592 . . . 328 161 . Cannons 1650 | . 91 . . 35 834 690 . Explosions 2946 | 36 718 . . . 2192 . . Melee 174 | . . . . . . 174 . Ramming 6 | . 5 . . . 1 . . Kinetic 1723 | . 384 . . . 777 562 . Thermal 677 | 36 91 . . 61 328 161 . Explosive 2798 | . 606 . . . 2192 . . Electromagnetic 531 | 26 320 . . . 57 128 . Impact . | . . . . . . . . Slashing 174 | . . . . . . 174 . Piercing . | . . . . . . . . Highest Corruption 7 | . 4 4 4 4 7 5 . Average Corruption 3 | . 2 4 4 4 7 2 . Corruption Purged . | . . . . . . . . Corruption Blocked . | . . . . . . . . Effects 118 | . 32 5 24 19 24 14 . Message Errors 31 | . 3 2 11 4 8 3 . Matter Fused 27 | . 9 1 3 6 5 3 . Heat Flow Errors 15 | . 6 . 1 5 1 2 . Energy Discharges 15 | . 3 2 5 1 4 . . Parts Rejected 1 | . . . . . 1 . . Parts Fused 4 | . . . 1 . 1 2 . Data Loss (minor) 12 | . 8 . 2 . 1 1 . Data Loss (major) 6 | . 1 . 1 1 . 3 . Misfires 4 | . 2 . . . 2 . . Alerts 3 | . . . . 2 1 . . Overload Shots . | . . . . . . . . Overflow Damage 111 | . 40 . . . 28 43 . Projectiles 3 | . . . . . . 3 . Explosions 68 | . 40 . . . 28 . . Melee 40 | . . . . . . 40 . Knockbacks 12 | . . . . . 6 6 . Impact . | . . . . . . . . Kinetic 12 | . . . . . 6 6 . Secondary . | . . . . . . . . Self-Inflicted Damage 187 | . 111 . . . 76 . . Shots 9 | . 5 . . . 4 . . Rammed 1 | . . . . . 1 . . Targets Rammed 2 | . 1 . . . 1 . . Kicked 1 | . 1 . . . . . . Crushed . | . . . . . . . . Highest Temperature 271 | . 232 . 131 271 228 203 . Average Temperature 74 | . 46 . 73 103 86 66 . Received Heat Transfer 1248 | . 288 . . . 765 195 . Effects 2 | . . . . 1 1 . . Energy Bleed 1 | . . . . 1 . . . Interference 1 | . . . . . 1 . . Siege Activations . | . . . . . . . . Robots Corrupted . | . . . . . . . . Combat Hostiles . | . . . . . . . . Parts Fried 1 | . 1 . . . . . . Impact Corruptions . | . . . . . . . . Robots Melted . | . . . . . . . . Combat Hostiles . | . . . . . . . . Parts Melted 3 | . . . . . 2 1 . Heat Transferred 1950 | 50 185 . . 124 925 666 . Parts Sabotaged . | . . . . . . . . Parts Stolen . | . . . . . . . . Parts Stripped . | . . . . . . . . Power Chain Reactions 2 | 1 1 . . . . . . Missiles Intercepted . | . . . . . . . . Alert | -11 -10 -10 -10 -9 -8 -7 -6 ------- Run | Jun Mat Min Exi Min Mat Fac Fac Peak Influence 470 | 5 212 4 . 6 470 314 . Initial 213 | . 3 4 . . . 213 . Average 91 | 2 81 4 . . 173 108 . Maximum Alert Level 2 | . 1 . . . 2 1 . Low Security (%) 82 | 100 94 100 . 100 53 75 . Level 1 15 | . 5 . . . 38 24 . Level 2 1 | . . . . . 8 . . Level 3 . | . . . . . . . . Level 4 . | . . . . . . . . Level 5 . | . . . . . . . . High Security . | . . . . . . . . Max Security . | . . . . . . . . Squads Dispatched 16 | . 5 . . . 4 7 . Investigation 3 | . 2 . . . . 1 . Extermination 2 | . . . . . . 2 . Reinforcement 8 | . 3 . . . 4 1 . Assault . | . . . . . . . . Garrison 3 | . . . . . . 3 . Intercept . | . . . . . . . . Searches Triggered . | . . . . . . . . Construction Impeded 2 | . . . . . 2 . . Haulers Reinforced . | . . . . . . . . Active Scanning Responses . | . . . . . . . . Cargo Convoy Interrupts . | . . . . . . . . Stealth | -11 -10 -10 -10 -9 -8 -7 -6 --------- Run | Jun Mat Min Exi Min Mat Fac Fac Distress Signals 6 | . 4 . . . 2 . . Communications Jammed . | . . . . . . . . Distress Signals . | . . . . . . . . Times Spotted 84 | . 32 . . . 42 10 . Peak Tracking Total 7 | . 4 . . . 7 2 . Tactical Retreats 2 | . . . . . 2 . . Traps | -11 -10 -10 -10 -9 -8 -7 -6 ------- Run | Jun Mat Min Exi Min Mat Fac Fac Traps Triggered 3 | . 3 . . . . . . Indirectly . | . . . . . . . . Trap Hack Attempts . | . . . . . . . . Triggered . | . . . . . . . . Disarmed . | . . . . . . . . Reprogrammed . | . . . . . . . . Reused . | . . . . . . . . Traps Extracted . | . . . . . . . . Installed . | . . . . . . . . Triggered . | . . . . . . . . Machines | -11 -10 -10 -10 -9 -8 -7 -6 ---------- Run | Jun Mat Min Exi Min Mat Fac Fac Machines Disabled 7 | . 2 . . . 5 . . Max in Single Turn 2 | . 1 . . . 2 . . Machines Repaired . | . . . . . . . . Machines Sabotaged . | . . . . . . . . Overloaded Fab Kills . | . . . . . . . . Hacking | -11 -10 -10 -10 -9 -8 -7 -6 --------- Run | Jun Mat Min Exi Min Mat Fac Fac Machines Accessed 11 | . 6 . 2 . 2 1 . Terminals 6 | . 4 . . . 2 . . Fabricators . | . . . . . . . . Repair Stations . | . . . . . . . . Recycling Units 2 | . 2 . . . . . . Scanalyzers . | . . . . . . . . Garrison Access 1 | . . . . . . 1 . Total Hacks 25 | . 14 . 2 . 7 2 . Successful 13 | . 8 . 2 . 3 . . Failed 12 | . 6 . . . 4 2 . Catastrophic 3 | . 1 . . . 1 1 . Database Lockouts . | . . . . . . . . Manual 16 | . 10 . 1 . 5 . . Terminals 18 | . 11 . . . 7 . . Fabricators . | . . . . . . . . Repair Stations . | . . . . . . . . Recycling Units 3 | . 3 . . . . . . Scanalyzers . | . . . . . . . . Garrison Access 2 | . . . . . . 2 . Terminal Hacks 12 | . 7 . 2 . 3 . . Record 2 | . . . 1 . 1 . . Robot Analysis 6 | . 6 . . . . . . Unreport Threat 1 | . . . . . 1 . . Hauler Manifests 1 | . 1 . . . . . . Zone Layout 1 | . . . . . 1 . . Derelict Proto ID Bank 1 | . . . 1 . . . . Fabricator Hacks . | . . . . . . . . Repair Station Hacks . | . . . . . . . . Recycling Unit Hacks 1 | . 1 . . . . . . Retrieve Components 1 | . 1 . . . . . . Scanalyzer . | . . . . . . . . Garrison Access Hacks . | . . . . . . . . Unauthorized Hacks . | . . . . . . . . Terminals . | . . . . . . . . Fabricators . | . . . . . . . . Repair Stations . | . . . . . . . . Recycling Units . | . . . . . . . . Scanalyzers . | . . . . . . . . Garrison Access . | . . . . . . . . Data Cores Recovered . | . . . . . . . . Used . | . . . . . . . . Hacking Detections 8 | . 5 . . . 2 1 . Full Trace Events 5 | . 3 . . . 1 1 . Feedback Events 1 | . 1 . . . . . . Corruption 1 | . 1 . . . . . . Feedback Blocked . | . . . . . . . . Robot Schematics Acquired . | . . . . . . . . Robots Built . | . . . . . . . . Authchips . | . . . . . . . . Time . | . . . . . . . . Total Robot Build Rating . | . . . . . . . . Part Schematics Acquired . | . . . . . . . . Parts Built . | . . . . . . . . Authchips . | . . . . . . . . Time . | . . . . . . . . Total Part Build Rating . | . . . . . . . . Parts Repaired . | . . . . . . . . Time . | . . . . . . . . Parts Recycled . | . . . . . . . . Recycled Matter . | . . . . . . . . Retrieved Matter . | . . . . . . . . Retrieved Components 10 | . 10 . . . . . . Parts Scanalyzed . | . . . . . . . . Part Schematics Acquired . | . . . . . . . . Parts Damaged . | . . . . . . . . Bothacking | -11 -10 -10 -10 -9 -8 -7 -6 ------------ Run | Jun Mat Min Exi Min Mat Fac Fac Used RIF Installer . | . . . . . . . . Robots Hacked . | . . . . . . . . Non-combat . | . . . . . . . . Combat . | . . . . . . . . Robot Hacks Applied . | . . . . . . . . Relay Couplers Released . | . . . . . . . . Fabnet Peak Effective % . | . . . . . . . . Robots Rewired . | . . . . . . . . Allies Hacked . | . . . . . . . . Hacks Repelled . | . . . . . . . . Allies | -11 -10 -10 -10 -9 -8 -7 -6 -------- Run | Jun Mat Min Exi Min Mat Fac Fac Total Allies . | . . . . . . . . Largest Group . | . . . . . . . . Highest-Rated Group . | . . . . . . . . Highest-Rated Ally . | . . . . . . . . Total Orders . | . . . . . . . . Ally Attacks . | . . . . . . . . Total Damage . | . . . . . . . . Kills . | . . . . . . . . Allies Corrupted . | . . . . . . . . Allies Melted . | . . . . . . . . Intel | -11 -10 -10 -10 -9 -8 -7 -6 ------- Run | Jun Mat Min Exi Min Mat Fac Fac Robot Analysis Total 6 | . 6 . . . . . . Derelict Logs Recovered 2 | . . . . 2 . . . Drone Launches . | . . . . . . . . Drone Recoveries . | . . . . . . . . Exploration | -11 -10 -10 -10 -9 -8 -7 -6 ------------- Run | Jun Mat Min Exi Min Mat Fac Fac Turns Passed 7175 | 19 2355 229 915 846 1157 1654 . Spaces Moved 2923 | 9 831 89 372 347 489 786 . Core 1 | . . . . . . 1 . Treads 1582 | . . . 257 347 193 785 . Legs 1044 | 9 831 89 115 . . . . Wheels 289 | . . . . . 289 . . Hover . | . . . . . . . . Flight 7 | . . . . . 7 . . Fastest Speed 87 | 120 120 260 160 240 87 164 . Average Speed 209 | 120 252 260 237 240 143 172 . Slowest Speed 1150 | 120 400 260 260 240 750 1150 . Overloaded Moves . | . . . . . . . . Propulsion Burnouts . | . . . . . . . . Robots Hopped . | . . . . . . . . Cave-ins Triggered 1 | . . . . . 1 . . Exploration Rate (%) 46 | 2 98 22 70 73 39 20 . Regions Visited 7 Branch Regions 3 Pre-discovered Areas 2 | . . . 1 1 . . . Known Exits Taken . | . . . . . . . . Unknown Exits Taken 7 | 1 1 1 1 1 1 1 . Scrap Searched 1 | . . . . 1 . . . Spaces Dug 32 | . . . . . 16 16 . Terrain Destroyed 190 | 2 65 . . 1 106 16 . Melee 16 | . . . . . . 16 . Projectile 19 | . . . . 1 18 . . AOE 155 | 2 65 . . . 88 . . Terrain Rammed . | . . . . . . . . Walls Destroyed . | . . . . . . . . Machines Disabled . | . . . . . . . . Actions | -11 -10 -10 -10 -9 -8 -7 -6 --------- Run | Jun Mat Min Exi Min Mat Fac Fac Total 3605 | 11 990 88 407 353 775 981 . Wait 181 | . 19 . 3 . 89 70 . Move 2916 | 8 830 88 371 346 488 785 . Hop . | . . . . . . . . Pick Up 74 | . 25 . 20 2 21 6 . Fast Attach 23 | . 3 . 2 . 9 9 . Attach 26 | . 6 . 2 . 15 3 . Detach 2 | . . . . . 2 . . Swap 48 | . 11 . 2 . 18 17 . Drop 63 | . 16 . 7 2 17 21 . Fire 251 | 3 79 . . 3 115 51 . Melee 19 | . . . . . . 19 . Ram 1 | . . . . . 1 . . Kick 1 | . 1 . . . . . . Crush . | . . . . . . . . Escape Stasis . | . . . . . . . . Rewire . | . . . . . . . . Trap . | . . . . . . . . Miscellaneous . | . . . . . . . . Route ------- -11/Junkyard -10/Materials (discovered 5 exits: [*Mat x3] / [*Min x2]) -10/Mines (discovered 2 exits: *Exi / [*Sub]) -10/Exiles -9/Mines (discovered 2 exits: *Mat x2) -8/Materials -7/Factory (discovered 2 exits: [*Fac x2]) -6/Factory History --------- Turn | Location | Event 5 | -11/Junkyard | Discovered new exit (range 3) 20 | -11/Junkyard | Entered Materials 301 | -10/Materials | Build established: Mutant 587 | -10/Materials | Discovered new exit (range 7) 862 | -10/Materials | Discovered new exit (range 6) 1309 | -10/Materials | Discovered new exit (range 10) 1803 | -10/Materials | Discovered new exit (range 9) 2252 | -10/Materials | Discovered new exit (range 15) 2375 | -10/Materials | Entered Mines 2412 | -10/Mines | Discovered new exit (range 11) 2485 | -10/Mines | Deemed a non-threat by the Exiles lab entrance 2485 | -10/Mines | Discovered new exit (range 5) 2604 | -10/Mines | Entered Exiles 2669 | -10/Exiles | Met 8R-AWN 2716 | -10/Exiles | Met EX-HEX 2797 | -10/Exiles | Met EX-BIN 2825 | -10/Exiles | Aligned with FarCom system 2828 | -10/Exiles | Given EX-Vault access code 2893 | -10/Exiles | Opened EX-Vault 2912 | -10/Exiles | Found Deploy-a-Sentry 2915 | -10/Exiles | Found Deploy-a-Sentry 2919 | -10/Exiles | Found Deploy-a-Sentry 2969 | -10/Exiles | Warned to stay clear of 0b10 Research branches 3039 | -10/Exiles | Met EX-DEC 3087 | -10/Exiles | Learned location of Zion (-7) 3483 | -10/Exiles | Discovered new exit (range 14) 3519 | -10/Exiles | Left Exiles lab with Deploy-a-Sentry 3519 | -10/Exiles | Entered Mines 3532 | -9/Mines | Met a Derelict bent on vengeance 3541 | -9/Mines | Discovered new exit (range 12) 3579 | -9/Mines | Learned location of 1 exit from Proximity Caves 3819 | -9/Mines | Learned location of Recycling (-8) 4237 | -9/Mines | Discovered new exit (range 14) 4365 | -9/Mines | Entered Materials 4365 | -8/Materials | Evolved 4 slots: Propulsion x2, Utility x2 4676 | -8/Materials | Crushed by falling debris 4894 | -8/Materials | Lost 7 parts (1p3n1u2w) 5474 | -8/Materials | Discovered new exit (range 15) 5522 | -8/Materials | Entered Factory 5522 | -7/Factory | Evolved 2 slots: Propulsion x1, Utility x1 5792 | -7/Factory | Discovered new exit (range 4) 5813 | -7/Factory | Build established: Infiltrator-Mutant 6410 | -7/Factory | Discovered new exit (range 10) 6486 | -7/Factory | Build established: Mutant 7176 | -7/Factory | Entered another Factory area 7176 | -6/Factory | Evolved 2 slots: Propulsion x1, Utility x1 7176 | -6/Factory | Self-destructed Last Messages --------------- 06938_ Acquired 14 matter. 06948_ UNUNF3S,=HPRLG 06966_ R-06 Scavenger collects Wheel. 06970_ R-06 Scavenger collects Lgt. Ion Engine. 06988_ System corrupted: Heat flow error (+236). 06995_ Dropped Lgt. Treads. 07012_ Dropped Arm. Treads. 07016_ R-06 Scavenger collects Lgt. Treads. 07019_ Dropped Mic. Nuclear Core. 07019_ Acquired Imp. Medium Treads. 07089_ K-01 Serf cleans the Fabricator. 07135_ System corrupted: Substantial component data lost. 07151_ System corrupted: Imp. Light Armor Plating fused. 07154_ O-24 Administrator: "IFF HANDSHAKE FAILED. SECURING TERMINAL." 07159_ ALERT: Hostiles spotted, dispatching reinforcements to Terminal F010. 07175_ System corrupted: Matter fused (-8). PARAMETERS=PROPULSION+1,UTILITY+1 LOCATION=UNKNOWN GOAL=ESCAPE 07176_ Receiving FarCom transmissions... Map ----- +----------------------------------------------------+ | ????????????????????????????????????????????? | | ????????????????????????????????????????????? | | ????????????????????????????????????????????? | | ????????????????????????????????????????????? | | ????????????????????????????????????????????? | | ????????????????????????????????????????????? | | ????????????????????????????????????????????? | | ????????????????????????????????????????????? | | ????????????????????????????????????????????? | | ????????????????????????????????????????????? | | ????????????????????????????????????????????? | | ????????????????????????????????????????????? | | ????????????????????????????????????????????? | | ????????????????????????????????????????????? | | ????????????????????????????????????????????? | | ????????????????????????????????????????????? | | ????????????????????????????????????????????? | | ????????????????????????????????????????????? | | ????????????????????????????????????????????? | | ????????????????????????????????????????????? | | ????????????????????????????????????????????? | | ??????????????????? ??????????????? | | ???????????????????#####+#####??????????????? | | ???????????????????## ##??????????????? | | ???????????????????## ##??????????????? | | ???????????????????## @ ##??????????????? | | ???????????????????## ##??????????????? | | ???????????????????## ##??????????????? | | ???????????????????## ####??????????????? | | ???????????????????## # ??????????????? | | ???????????????????## # ????????????????? | | ???????????????????## + ????????????????? | | ???????????????????## # ????????????????? | | ???????????????????## # ????????????????? | | ?????????????????Y?## # ????????????????? | | ???????????????????## ??????????????????? | | ???????????????????## ??????????????????? | | ??????????????????? ??????????????????? | | ???????????????????? ??????????????????? | | ????????????????????? ??????????????????? | | ??????????????????????? ??????????????????? | | ????????????????????????????????????????????? | | ????????????????????????????????????????????? | | ????????????????????????????????????????????? | | ????????????????????????????????????????????? | | ????????????????????????????????????????????? | | ????????????????????????????????????????????? | | ????????????????????????????????????????????? | | ????????????????????????????????????????????? | | ????????????????????????????????????????????? | +----------------------------------------------------+ Best States ------------- Heat Dissipation 48 Energy Generation 15 Energy Capacity 265 Matter Stores 300 Matter Capacity 300 Sight Range 16 Terrain Scan Density 10 Armor Coverage 375 Evasion (%) 50 Targeting Accuracy 5 Recoil Reduction 5 Item Schematics ----------------- None Robot Schematics ------------------ None Fabricated ------------ Nothing Alien Tech Used ----------------- None Achievements -------------- None Challenges ------------ None Game ------ Seed StorageChromaticDiverter Manual? 0 Play Time 01:05:56 Cumulative 71.8 hours Start 2023.08.23 @ 19:20:38 End 2023.08.25 @ 01:31:10 Sessions 5 Manual Loads 0 Difficulty Rogue Special Mode None Game No. 59 Rogue 59 Adventurer 0 Explorer 0 Win Type - Total 1 Types 1/0/0/0/0/0/0/0/0 Lore% 40 Gallery% 34 Achievement% 37 Wizard Run 0 Options --------- ASCII 0 Keyboard 0 Movement Mouse Keybinds 0 Fullscreen 1 Font 16/SmallcapsGlow Map View 84x54 Tactical HUD 1 Map Filters NONE Filters NONE Steam 1 RUN: 1588dcc7-70ed-4852-83ef-7ba0d803b2d6